fUSD/lending_fUSD_20260118
["ID","MTS","AMOUNT","RATE_DAILY","PERIOD"]
[402540426,1768702250344,-420.0,0.00016541,2]
[402540428,1768702250353,-164.41806213,0.00016547,2]
[402540430,1768702250362,-150.0,0.0001656,2]
[402540432,1768702250371,-3049.0,0.00016562,2]
[402540434,1768702250380,-150.0,0.00016572,2]
[402540436,1768702250389,-300.0,0.000166,2]
[402540438,1768702250399,-151.0,0.00016604,2]
[402540440,1768702250408,-183.78421951,0.00016604,2]
[402540442,1768702250417,-35021.4238218,0.00016617,2]
[402540444,1768702250426,-1680.0,0.00016625,2]
[402540446,1768702250435,-150.0,0.00016634,2]
[402540448,1768702250444,-300.0,0.00016646,2]
[402540450,1768702250454,-500.0,0.00016646,2]
[402540452,1768702250463,-260972.97365304,0.00016647,2]
[402540458,1768702250507,-29051.29620767,0.00016647,2]
[402540460,1768702250517,-19056.80752848,0.00016647,2]
[402540463,1768702250537,-18814.53096333,0.00016647,2]
[402540466,1768702250555,-1893.37558801,0.00016647,2]
[402540468,1768702250566,-2187.70181487,0.00016647,2]
[402540470,1768702250577,-1362.65454814,0.00016647,2]
[402540480,1768702250665,-1110.06940007,0.00016647,2]
[402541349,1768703324064,2957.37,0.00027397,120]
[402541351,1768703325038,178.39783753,0.00010959,7]
[402541373,1768703357687,2957.36,0.00013256,2]
[402541376,1768703370901,-486.48623362,0.00014247,2]
[402541377,1768703373568,-370.69536688,0.00014247,2]
[402541379,1768703375798,-154.31737634,0.00014247,2]
[402541384,1768703377263,-257.04671613,0.00014247,2]
[402541385,1768703378888,-324.70691285,0.00014247,2]
[402541413,1768703431365,-1061.27718922,0.00014247,2]
[402541417,1768703431377,-806.27020496,0.00014247,2]
[402541420,1768703431388,-151.66285807,0.00014326,2]
[402541423,1768703431397,-2938.54,0.00014426,2]
[402541426,1768703431406,-250.0,0.00014484,2]
[402541428,1768703431415,-99.78411587,0.00014543,2]
[402541432,1768703431438,-127.36588413,0.00014543,2]
[402541434,1768703431447,-272.63411587,0.00014543,2]
[402541436,1768703431459,-927.36588413,0.00014543,2]
[402541437,1768703431468,-485.88883214,0.00014543,2]
[402541438,1768703431479,-114.11116786,0.00014543,2]
[402541439,1768703431488,-195.0,0.00014543,2]
[402541440,1768703431496,-264.18365008,0.00014543,2]
[402541441,1768703431505,-84.28844801,0.00014544,2]
[402541442,1768703431516,-375.12799992,0.00014544,2]
[402541443,1768703431527,-372.51000098,0.00014544,2]
[402541444,1768703431557,-531.79355109,0.00014544,2]
[402541445,1768703431567,-121.20644891,0.00014718,2]
[402541446,1768703431578,-42.30355109,0.00014718,2]
[402541447,1768703431588,-158.64801567,0.00014718,2]
[402541448,1768703431598,-151.66285807,0.000148,2]
[402541449,1768703431607,-150.0,0.00014854,2]
[402541450,1768703431616,-40.91976387,0.00014854,2]
[402541451,1768703431639,-459.08023613,0.00014854,2]
[402541452,1768703431650,-63.99812851,0.00014854,2]
[402541453,1768703431661,-92.3370244,0.00014854,2]
[402541454,1768703431670,-500.0,0.00014854,2]
[402541455,1768703431680,-500.0,0.00014854,2]
[402541456,1768703431689,-557.15806621,0.00014854,2]
[402541457,1768703431699,-9826.29786825,0.00014855,2]
[402541460,1768703431711,-1797.27377018,0.00014855,2]
[402541462,1768703431722,-835.60817854,0.00014855,2]
[402541464,1768703431733,-533.34640399,0.00014855,2]
[402541467,1768703431748,-522.90611704,0.00014855,2]
[402541469,1768703431759,-3673.29706504,0.00014855,2]
[402541472,1768703437443,-3405.21314503,0.00014855,2]
[402541473,1768703437500,-4179.7483014,0.00014855,2]
[402541474,1768703437639,-6348.90084719,0.00014855,2]
[402541475,1768703437652,-53773.52264741,0.00014855,2]
[402541476,1768703437665,-349.34182677,0.00014855,2]
[402541646,1768703439754,-489.29525831,0.00014855,2]
[402541653,1768703439808,-1167.03067524,0.00014855,2]
[402541660,1768703439863,-672400.20709561,0.00014855,2]
[402541662,1768703439874,-200.0,0.000149,5]
[402541664,1768703439884,-207.10004465,0.00014909,2]
[402541666,1768703439894,-6943.30805067,0.00014944,2]
[402541668,1768703439905,-10001.2607975,0.00014944,2]
[402541670,1768703439915,-1000.0,0.00014955,2]
[402541672,1768703439926,-10898.55589603,0.00015,2]
[402541674,1768703439936,-28779.73343918,0.00015,2]
[402541677,1768703439947,-216.96472332,0.00015009,2]
[402541679,1768703439958,-179.225,0.00015017,2]
[402541681,1768703439968,-1147.865,0.00015017,2]
[402541683,1768703439979,-500.0,0.00015018,2]
[402541685,1768703439989,-500.0,0.00015018,2]
[402541687,1768703439999,-500.0,0.00015018,2]
[402541689,1768703440010,-500.0,0.00015018,2]
[402541692,1768703440020,-500.0,0.00015018,2]
[402541694,1768703440031,-500.0,0.00015018,2]
[402541696,1768703440041,-533.20641898,0.00015018,2]
[402541698,1768703440051,-184.40223428,0.00015018,2]
[402541700,1768703440061,-500.0,0.00015018,2]
[402541702,1768703440072,-500.0,0.00015018,2]
[402541704,1768703440083,-613.73032817,0.00015018,2]
[402541706,1768703440093,-2955.49,0.00015044,2]
[402541709,1768703440103,-6943.30805061,0.00015272,2]
[402541711,1768703440114,-10001.26079747,0.00015272,2]
[402541713,1768703440124,-1517.64,0.000153,2]
[402541715,1768703440136,-150.0,0.00015335,2]
[402541717,1768703440148,-166.66,0.00015367,2]
[402541719,1768703440158,-30190.05881065,0.00015401,2]
[402541722,1768703440168,-6943.30805061,0.00015601,2]
[402541724,1768703440178,-10001.26079747,0.00015601,2]
[402541726,1768703440188,-207.10004465,0.00015624,2]
[402541728,1768703440198,-283.14,0.00015718,2]
[402541730,1768703440208,-500.0,0.00015735,2]
[402541732,1768703440219,-150.0,0.00015756,2]
[402541734,1768703440229,-150.0,0.00015756,2]
[402541736,1768703440240,-150.0,0.00015756,2]
[402541739,1768703440252,-150.0,0.00015756,2]
[402541741,1768703440262,-150.0,0.00015756,2]
[402541743,1768703440272,-150.0,0.00015756,2]
[402541745,1768703440283,-150.0,0.00015756,2]
[402541747,1768703440293,-150.0,0.00015756,2]
[402541749,1768703440303,-150.0,0.00015756,2]
[402541751,1768703440317,-150.0,0.00015756,2]
[402541753,1768703440327,-150.0,0.00015756,2]
[402541756,1768703440338,-150.0,0.00015756,2]
[402541758,1768703440349,-150.0,0.00015756,2]
[402541760,1768703440360,-150.0,0.00015756,2]
[402541762,1768703440370,-150.0,0.00015756,2]
[402541764,1768703440380,-2530.1076,0.000158,2]
[402541766,1768703440393,-150.0,0.00015806,2]
[402541769,1768703440403,-150.0,0.00015856,2]
[402541771,1768703440414,-250.0,0.00015868,2]
[402541773,1768703440424,-500.0,0.00015888,2]
[402541775,1768703440434,-500.0,0.00015888,2]
[402541777,1768703440444,-511.86882252,0.00015888,2]
[402541779,1768703440454,-506.97630376,0.00015888,2]
[402541781,1768703440464,-500.0,0.00015888,2]
[402541783,1768703440474,-500.0,0.00015888,2]
[402541785,1768703440484,-539.42217884,0.00015888,2]
[402541787,1768703440494,-500.0,0.000159,5]
[402541789,1768703440504,-150.0,0.00015902,2]
[402541792,1768703440514,-150.0,0.00015906,2]
[402541794,1768703440524,-6943.30805061,0.00015929,2]
[402541796,1768703440535,-10001.26079747,0.00015929,2]
[402541798,1768703440545,-150.0,0.00015931,2]
[402541800,1768703440555,-150.0,0.00015931,2]
[402541802,1768703440565,-150.0,0.00015951,2]
[402541804,1768703440575,-150.0,0.00015956,2]
[402541806,1768703440585,-150.0,0.00015969,2]
[402541808,1768703440596,-255.0,0.00015983,2]
[402541810,1768703440607,-193.33956939,0.00015987,2]
[402541813,1768703440617,-1680.0,0.00015997,2]
[402541815,1768703440628,-195.0,0.00015997,2]
[402541817,1768703440638,-300.0,0.00015997,2]
[402541819,1768703440649,-600.0,0.00015997,2]
[402541821,1768703440659,-166.66,0.00016001,2]
[402541823,1768703440669,-150.0,0.00016006,2]
[402541825,1768703440679,-150.0,0.00016006,2]
[402541827,1768703440689,-150.0,0.00016006,2]
[402541829,1768703440700,-150.0,0.00016048,2]
[402541832,1768703440711,-150.0,0.00016056,2]
[402541834,1768703440722,-662.74,0.00016082,2]
[402541836,1768703440732,-967.25,0.00016082,2]
[402541838,1768703440743,-187.78971762,0.00016106,2]
[402541840,1768703440753,-150.0,0.00016106,2]
[402541842,1768703440763,-150.0,0.00016106,2]
[402541844,1768703440774,-150.0,0.00016106,2]
[402541846,1768703440784,-150.0,0.00016106,2]
[402541848,1768703440794,-150.0,0.00016145,2]
[402541850,1768703440805,-150.0,0.00016156,2]
[402541853,1768703440816,-1000.0,0.00016171,2]
[402541855,1768703440826,-1455.4398054,0.0001618,2]
[402541857,1768703440837,-150.0,0.00016194,2]
[402541859,1768703440847,-150.0,0.00016194,2]
[402541861,1768703440857,-150.0,0.00016194,2]
[402541863,1768703440868,-78822.93173544,0.000162,5]
[402541865,1768703440878,-150.0,0.00016206,2]
[402541867,1768703440889,-432.20581711,0.00016233,2]
[402541868,1768703440899,-150.0,0.00016256,2]
[402541869,1768703440911,-150.0,0.00016256,2]
[402541870,1768703440921,-150.0,0.00016256,2]
[402541871,1768703440931,-6943.30805061,0.00016258,2]
[402541872,1768703440941,-10001.26079747,0.00016258,2]
[402541873,1768703440952,-150.0,0.00016281,2]
[402541876,1768703440963,-150.0,0.00016281,2]
[402541878,1768703440973,-174.61919141,0.00016303,2]
[402541880,1768703440984,-831.53985279,0.00016303,2]
[402541882,1768703440994,-4001.0,0.00016303,2]
[402541884,1768703441005,-322.6107,0.00016303,2]
[402541886,1768703441016,-620.0,0.00016303,2]
[402541889,1768703441026,-281.91052736,0.00016303,2]
[402541891,1768703441037,-574.12855637,0.00016303,2]
[402541893,1768703441047,-150.0,0.00016306,2]
[402541895,1768703441058,-483.68,0.00016326,2]
[402541897,1768703441068,-493.08,0.00016326,2]
[402541899,1768703441079,-207.10004465,0.00016338,2]
[402541901,1768703441089,-150.0,0.0001634,2]
[402541904,1768703441100,-150.0,0.0001634,2]
[402541906,1768703441110,-150.0,0.0001634,2]
[402541908,1768703441120,-800.0,0.00016356,2]
[402541910,1768703441130,-500.0,0.00016356,2]
[402541912,1768703441140,-500.0,0.00016356,2]
[402541914,1768703441151,-300.0,0.00016356,2]
[402541917,1768703441161,-467.79,0.00016356,2]
[402541919,1768703441171,-467.79,0.00016356,2]
[402541921,1768703441182,-935.04,0.00016356,2]
[402541923,1768703441192,-150.0,0.00016356,2]
[402541925,1768703441201,-296.98,0.000164,2]
[402541927,1768703441212,-187.78971762,0.00016405,2]
[402541929,1768703441222,-150.0,0.00016406,2]
[402541931,1768703441231,-326.5964121,0.00016428,2]
[402541934,1768703441242,-501.14632219,0.00016438,2]
[402541936,1768703441251,-979.80974503,0.00016438,2]
[402541938,1768703441261,-1064.97523585,0.00016438,2]
[402541940,1768703441271,-501.32651158,0.00016438,2]
[402541942,1768703441281,-501.36673818,0.00016438,2]
[402541944,1768703441292,-501.8149228,0.00016438,2]
[402541946,1768703441302,-502.40375353,0.00016438,2]
[402541948,1768703441314,-502.06349229,0.00016438,2]
[402541951,1768703441325,-500.35695421,0.00016438,2]
[402541953,1768703441335,-499.99558861,0.00016438,2]
[402541955,1768703441346,-500.0,0.00016438,2]
[402541957,1768703441358,-500.0,0.00016438,2]
[402541959,1768703441368,-500.0,0.00016438,2]
[402541961,1768703441379,-500.0,0.00016438,2]
[402541963,1768703441390,-500.0,0.00016438,2]
[402541966,1768703441401,-702.15,0.00016438,2]
[402541968,1768703441411,-500.0,0.00016438,2]
[402541970,1768703441422,-500.0,0.00016438,2]
[402541972,1768703441432,-500.0,0.00016438,2]
[402541974,1768703441443,-509.3337683,0.00016438,2]
[402541976,1768703441453,-500.0,0.00016438,2]
[402541978,1768703441463,-500.0,0.00016438,2]
[402541981,1768703441474,-500.0,0.00016438,2]
[402542058,1768703442231,-489.0,0.00016438,2]
[402542063,1768703442252,-500.0,0.00016438,2]
[402542067,1768703442279,-500.0,0.00016438,2]
[402542071,1768703442306,-593.23,0.00016438,2]
[402542073,1768703442323,-500.0,0.00016438,2]
[402542075,1768703442333,-500.0,0.00016438,2]
[402542077,1768703442343,-500.0,0.00016438,2]
[402542079,1768703442352,-500.0,0.00016438,2]
[402542081,1768703442363,-500.0,0.00016438,2]
[402542083,1768703442372,-500.0,0.00016438,2]
[402542085,1768703442381,-494.5,0.00016438,2]
[402542088,1768703442391,-500.0,0.00016438,2]
[402542090,1768703442402,-500.0,0.00016438,2]
[402542092,1768703442411,-519.82,0.00016438,2]
[402542094,1768703442420,-500.0,0.00016438,2]
[402542096,1768703442429,-500.0,0.00016438,2]
[402542098,1768703442438,-500.0,0.00016438,2]
[402542100,1768703442448,-808.51,0.00016438,2]
[402542102,1768703442457,-500.0,0.00016438,2]
[402542104,1768703442466,-500.0,0.00016438,2]
[402542106,1768703442475,-500.0,0.00016438,2]
[402542108,1768703442484,-670.49,0.00016438,2]
[402542110,1768703442493,-500.0,0.00016438,2]
[402542112,1768703442503,-500.0,0.00016438,2]
[402542114,1768703442512,-500.0,0.00016438,2]
[402542116,1768703442522,-500.0,0.00016438,2]
[402542118,1768703442532,-500.0,0.00016438,2]
[402542120,1768703442541,-500.0,0.00016438,2]
[402542122,1768703442551,-500.0,0.00016438,2]
[402542124,1768703442560,-500.0,0.00016438,2]
[402542126,1768703442569,-500.0,0.00016438,2]
[402542128,1768703442579,-500.0,0.00016438,2]
[402542130,1768703442588,-500.0,0.00016438,2]
[402542132,1768703442597,-509.00212753,0.00016438,2]
[402542134,1768703442607,-500.0,0.00016438,2]
[402542136,1768703442616,-500.0,0.00016438,2]
[402542138,1768703442625,-835.84,0.00016438,2]
[402542140,1768703442634,-500.0,0.00016438,2]
[402542142,1768703442644,-500.0,0.00016438,2]
[402542144,1768703442653,-500.0,0.00016438,2]
[402542146,1768703442663,-500.0,0.00016438,2]
[402542148,1768703442672,-500.0,0.00016438,2]
[402542150,1768703442681,-512.84174735,0.00016438,2]
[402542152,1768703442691,-500.0,0.00016438,2]
[402542154,1768703442700,-500.0,0.00016438,2]
[402542156,1768703442709,-500.0,0.00016438,2]
[402542158,1768703442719,-500.0,0.00016438,2]
[402542160,1768703442728,-500.0,0.00016438,2]
[402542162,1768703442739,-500.0,0.00016438,2]
[402542164,1768703442750,-300.0,0.00016438,2]
[402542166,1768703442759,-500.0,0.00016438,2]
[402542168,1768703442770,-1197.76,0.00016438,2]
[402542170,1768703442779,-500.0,0.00016438,2]
[402542172,1768703442789,-500.0,0.00016438,2]
[402542174,1768703442799,-500.0,0.00016438,2]
[402542176,1768703442808,-500.0,0.00016438,2]
[402542178,1768703442817,-500.0,0.00016438,2]
[402542180,1768703442826,-500.0,0.00016438,2]
[402542182,1768703442836,-500.0,0.00016438,2]
[402542184,1768703442845,-500.0,0.00016438,2]
[402542186,1768703442855,-500.0,0.00016438,2]
[402542188,1768703442864,-500.0,0.00016438,2]
[402542190,1768703442878,-500.0,0.00016438,2]
[402542192,1768703442887,-500.0,0.00016438,2]
[402542194,1768703442897,-542.56,0.00016438,2]
[402542196,1768703442905,-500.0,0.00016438,2]
[402542198,1768703442915,-500.0,0.00016438,2]
[402542200,1768703442924,-747.18,0.00016438,2]
[402542202,1768703442935,-500.0,0.00016438,2]
[402542204,1768703442944,-500.0,0.00016438,2]
[402542206,1768703442953,-500.0,0.00016438,2]
[402542208,1768703442963,-500.0,0.00016438,2]
[402542210,1768703442973,-500.0,0.00016438,2]
[402542212,1768703442982,-500.0,0.00016438,2]
[402542214,1768703442991,-500.0,0.00016438,2]
[402542216,1768703443001,-500.0,0.00016438,2]
[402542218,1768703443010,-500.0,0.00016438,2]
[402542220,1768703443019,-500.0,0.00016438,2]
[402542222,1768703443028,-500.0,0.00016438,2]
[402542224,1768703443038,-500.0,0.00016438,2]
[402542226,1768703443047,-500.0,0.00016438,2]
[402542228,1768703443056,-500.0,0.00016438,2]
[402542230,1768703443066,-500.0,0.00016438,2]
[402542232,1768703443075,-500.0,0.00016438,2]
[402542234,1768703443084,-610.23,0.00016438,2]
[402542236,1768703443093,-500.0,0.00016438,2]
[402542238,1768703443103,-657.14,0.00016438,2]
[402542240,1768703443112,-500.0,0.00016438,2]
[402542242,1768703443122,-500.0,0.00016438,2]
[402542244,1768703443131,-500.0,0.00016438,2]
[402542246,1768703443141,-500.0,0.00016438,2]
[402542248,1768703443150,-500.0,0.00016438,2]
[402542250,1768703443159,-500.0,0.00016438,2]
[402542252,1768703443169,-500.0,0.00016438,2]
[402542254,1768703443178,-500.0,0.00016438,2]
[402542256,1768703443188,-500.0,0.00016438,2]
[402542258,1768703443197,-682.34,0.00016438,2]
[402542260,1768703443207,-500.0,0.00016438,2]
[402542262,1768703443216,-500.0,0.00016438,2]
[402542264,1768703443226,-500.0,0.00016438,2]
[402542266,1768703443235,-511.72077288,0.00016438,2]
[402542268,1768703443244,-500.0,0.00016438,2]
[402542270,1768703443254,-551.65799456,0.00016438,2]
[402542272,1768703443264,-500.0,0.00016438,2]
[402542274,1768703443275,-157.27990513,0.00016438,2]
[402542276,1768703443284,-500.0,0.00016438,2]
[402542278,1768703443295,-509.94754224,0.00016438,2]
[402542280,1768703443304,-704.91,0.00016438,2]
[402542282,1768703443318,-500.0,0.00016438,2]
[402542284,1768703443328,-500.0,0.00016438,2]
[402542286,1768703443337,-547.29,0.00016438,2]
[402542288,1768703443347,-500.0,0.00016438,2]
[402542290,1768703443357,-500.0,0.00016438,2]
[402542292,1768703443366,-500.0,0.00016438,2]
[402542294,1768703443376,-511.16324783,0.00016438,2]
[402542296,1768703443387,-500.0,0.00016438,2]
[402542298,1768703443396,-940.19,0.00016438,2]
[402542300,1768703443405,-500.0,0.00016438,2]
[402542302,1768703443415,-630.03,0.00016438,2]
[402542304,1768703443424,-500.0,0.00016438,2]
[402542306,1768703443434,-500.0,0.00016438,2]
[402542308,1768703443444,-500.0,0.00016438,2]
[402542310,1768703443453,-500.0,0.00016438,2]
[402542312,1768703443463,-500.0,0.00016438,2]
[402542314,1768703443472,-1411.99,0.00016438,2]
[402542316,1768703443481,-500.0,0.00016438,2]
[402542318,1768703443491,-603.74,0.00016438,2]
[402542320,1768703443500,-528.88,0.00016438,2]
[402542322,1768703443509,-501.38,0.00016438,2]
[402542324,1768703443518,-500.0,0.00016438,2]
[402542326,1768703443528,-500.0,0.00016438,2]
[402542328,1768703443538,-500.0,0.00016438,2]
[402542330,1768703443547,-499.03727827,0.00016438,2]
[402542332,1768703443557,-500.0,0.00016438,2]
[402542334,1768703443567,-500.0,0.00016438,2]
[402542336,1768703443576,-500.0,0.00016438,2]
[402542338,1768703443586,-612.03,0.00016438,2]
[402542340,1768703443596,-500.0,0.00016438,2]
[402542342,1768703443607,-500.0,0.00016438,2]
[402542345,1768703443617,-500.0,0.00016438,2]
[402542347,1768703443627,-500.0,0.00016438,2]
[402542349,1768703443636,-500.0,0.00016438,2]
[402542351,1768703443646,-500.0,0.00016438,2]
[402542354,1768703443668,-500.0,0.00016438,2]
[402542356,1768703443677,-500.0,0.00016438,2]
[402542358,1768703443687,-500.0,0.00016438,2]
[402542360,1768703443697,-500.0,0.00016438,2]
[402542362,1768703443708,-566.42,0.00016438,2]
[402542364,1768703443718,-500.0,0.00016438,2]
[402542366,1768703443728,-500.0,0.00016438,2]
[402542368,1768703443738,-582.85,0.00016438,2]
[402542370,1768703443748,-500.0,0.00016438,2]
[402542372,1768703443758,-509.99,0.00016438,2]
[402542374,1768703443768,-500.0,0.00016438,2]
[402542376,1768703443779,-507.44,0.00016438,2]
[402542378,1768703443789,-500.0,0.00016438,2]
[402542380,1768703443799,-500.0,0.00016438,2]
[402542382,1768703443809,-500.0,0.00016438,2]
[402542384,1768703443819,-500.0,0.00016438,2]
[402542387,1768703443829,-500.0,0.00016438,2]
[402542389,1768703443840,-540.32,0.00016438,2]
[402542391,1768703443849,-500.0,0.00016438,2]
[402542393,1768703443859,-500.0,0.00016438,2]
[402542395,1768703443869,-782.26,0.00016438,2]
[402542397,1768703443880,-500.0,0.00016438,2]
[402542399,1768703443889,-500.0,0.00016438,2]
[402542401,1768703443899,-595.36,0.00016438,2]
[402542403,1768703443910,-548.03,0.00016438,2]
[402542405,1768703443919,-510.96355385,0.00016438,2]
[402542407,1768703443929,-500.0,0.00016438,2]
[402542409,1768703443939,-500.0,0.00016438,2]
[402542411,1768703443951,-500.0,0.00016438,2]
[402542413,1768703443962,-500.0,0.00016438,2]
[402542415,1768703443972,-500.0,0.00016438,2]
[402542417,1768703443982,-500.0,0.00016438,2]
[402542419,1768703443992,-180.68495298,0.00016438,2]
[402542422,1768703444002,-506.19,0.00016438,2]
[402542424,1768703444016,-500.0,0.00016438,2]
[402542426,1768703444027,-500.0,0.00016438,2]
[402542428,1768703444037,-500.0,0.00016438,2]
[402542430,1768703444046,-500.0,0.00016438,2]
[402542432,1768703444057,-322.77595244,0.00016438,2]
[402542434,1768703444067,-500.0,0.00016438,2]
[402542436,1768703444079,-500.0,0.00016438,2]
[402542438,1768703444098,-682.66,0.00016438,2]
[402542441,1768703444109,-500.0,0.00016438,2]
[402542443,1768703444120,-500.0,0.00016438,2]
[402542445,1768703444131,-500.0,0.00016438,2]
[402542447,1768703444142,-500.0,0.00016438,2]
[402542449,1768703444153,-500.0,0.00016438,2]
[402542451,1768703444165,-500.0,0.00016438,2]
[402542453,1768703444175,-631.54,0.00016438,2]
[402542455,1768703444185,-500.0,0.00016438,2]
[402542457,1768703444195,-500.0,0.00016438,2]
[402542460,1768703444205,-500.0,0.00016438,2]
[402542462,1768703444215,-644.14227135,0.00016438,2]
[402542464,1768703444225,-511.37268471,0.00016438,2]
[402542466,1768703444235,-419.81749523,0.00016438,2]
[402542468,1768703444245,-500.0,0.00016438,2]
[402542470,1768703444255,-500.0,0.00016438,2]
[402542472,1768703444265,-500.0,0.00016438,2]
[402542474,1768703444275,-500.0,0.00016438,2]
[402542476,1768703444284,-535.32,0.00016438,2]
[402542478,1768703444297,-489.0,0.00016438,2]
[402542480,1768703444307,-500.0,0.00016438,2]
[402542482,1768703444319,-500.0,0.00016438,2]
[402542484,1768703444330,-290.31581266,0.00016438,2]
[402542486,1768703444341,-500.0,0.00016438,2]
[402542488,1768703444351,-500.0,0.00016438,2]
[402542490,1768703444362,-500.0,0.00016438,2]
[402542492,1768703444372,-500.0,0.00016438,2]
[402542494,1768703444381,-564.88831239,0.00016438,2]
[402542497,1768703444396,-703.12,0.00016438,2]
[402542499,1768703444406,-500.0,0.00016438,2]
[402542501,1768703444416,-560.88,0.00016438,2]
[402542503,1768703444426,-500.0,0.00016438,2]
[402542505,1768703444436,-500.0,0.00016438,2]
[402542507,1768703444446,-500.0,0.00016438,2]
[402542509,1768703444456,-500.0,0.00016438,2]
[402542511,1768703444466,-500.0,0.00016438,2]
[402542513,1768703444476,-500.0,0.00016438,2]
[402542515,1768703444486,-500.0,0.00016438,2]
[402542517,1768703444495,-500.0,0.00016438,2]
[402542519,1768703444505,-500.0,0.00016438,2]
[402542521,1768703444515,-500.0,0.00016438,2]
[402542523,1768703444525,-500.0,0.00016438,2]
[402542525,1768703444535,-504.43709326,0.00016438,2]
[402542527,1768703444544,-980.74,0.00016438,2]
[402542529,1768703444554,-550.32,0.00016438,2]
[402542531,1768703444564,-500.0,0.00016438,2]
[402542533,1768703444574,-500.0,0.00016438,2]
[402542536,1768703444585,-500.0,0.00016438,2]
[402542538,1768703444595,-500.0,0.00016438,2]
[402542540,1768703444605,-500.0,0.00016438,2]
[402542542,1768703444616,-500.0,0.00016438,2]
[402542544,1768703444627,-500.0,0.00016438,2]
[402542561,1768703444789,-500.0,0.00016438,2]
[402542563,1768703444799,-500.0,0.00016438,2]
[402542565,1768703444808,-500.0,0.00016438,2]
[402542567,1768703444818,-500.0,0.00016438,2]
[402542569,1768703444828,-500.0,0.00016438,2]
[402542571,1768703444837,-500.0,0.00016438,2]
[402542574,1768703444847,-500.0,0.00016438,2]
[402542575,1768703444857,-500.0,0.00016438,2]
[402542577,1768703444866,-500.0,0.00016438,2]
[402542579,1768703444876,-400.0,0.00016438,2]
[402542581,1768703444885,-500.0,0.00016438,2]
[402542583,1768703444895,-500.0,0.00016438,2]
[402542585,1768703444904,-500.0,0.00016438,2]
[402542587,1768703444913,-500.0,0.00016438,2]
[402542589,1768703444923,-500.0,0.00016438,2]
[402542591,1768703444933,-538.54,0.00016438,2]
[402542593,1768703444942,-500.0,0.00016438,2]
[402542595,1768703444952,-500.0,0.00016438,2]
[402542597,1768703444961,-500.0,0.00016438,2]
[402542599,1768703444970,-500.0,0.00016438,2]
[402542601,1768703444980,-500.0,0.00016438,2]
[402542603,1768703444989,-508.80966665,0.00016438,2]
[402542605,1768703444999,-795.73,0.00016438,2]
[402542607,1768703445008,-536.25945036,0.00016438,2]
[402542609,1768703445017,-500.0,0.00016438,2]
[402542611,1768703445026,-500.0,0.00016438,2]
[402542613,1768703445035,-500.0,0.00016438,2]
[402542615,1768703445045,-610.7,0.00016438,2]
[402542617,1768703445055,-399.88479066,0.00016438,2]
[402542619,1768703445064,-500.0,0.00016438,2]
[402542622,1768703445074,-500.0,0.00016438,2]
[402542624,1768703445088,-500.0,0.00016438,2]
[402542626,1768703445098,-500.0,0.00016438,2]
[402542628,1768703445107,-500.0,0.00016438,2]
[402542630,1768703445116,-500.0,0.00016438,2]
[402542632,1768703445126,-500.0,0.00016438,2]
[402542634,1768703445135,-500.0,0.00016438,2]
[402542636,1768703445144,-500.0,0.00016438,2]